bitfinex-derivatives/quotes_ETHF0:USTF0_20250316
["timestamp","ask_amount","ask_price","bid_price","bid_amount"]
[1742148514579,0.42449852,1900.0,1899.9,2.1947]
[1742148514985,1.26657852,1900.0,1899.9,1.3526]
[1742148515290,1.26657852,1900.0,1899.9,2.19473]
[1742148515880,1.26657852,1900.0,1899.9,1.3526]
[1742148516392,3.63229852,1900.0,1899.7,0.8422]
[1742148516592,4.04997,1899.8,1899.7,1.3526]
[1742148517094,5.80646852,1899.8,1899.7,1.3526]
[1742148517690,0.84231,1899.5,1899.4,0.7157]
[1742148517992,0.84235,1899.4,1899.3,8.35e-06]
[1742148518493,1.26684852,1899.4,1899.3,0.84239835]
[1742148518690,0.42449852,1899.4,1899.3,0.84239835]
[1742148519089,1.26684852,1899.4,1899.3,0.84239835]
[1742148519284,1.26684852,1899.4,1899.3,8.35e-06]
[1742148522091,4.47464852,1899.4,1899.3,8.35e-06]
[1742148522690,5.79964852,1899.4,1899.3,8.35e-06]
[1742148527798,0.42449852,1899.4,1899.3,0.84239835]
[1742148527996,0.42449852,1899.4,1899.3,1.55809835]
[1742148528192,1.26684852,1899.4,1899.3,8.35e-06]
[1742148529203,4.47464852,1899.4,1899.3,8.35e-06]
[1742148529804,5.93864852,1899.4,1899.3,8.35e-06]
[1742148533304,18.42764852,1899.4,1899.3,8.35e-06]
[1742148533804,18.42364852,1899.4,1899.3,8.35e-06]
[1742148534002,15.92364852,1899.4,1899.3,8.35e-06]
[1742148534196,18.42364852,1899.4,1899.3,8.35e-06]
[1742148535201,0.84266,1898.7,1898.6,5.5149]
[1742148535709,0.84266,1898.7,1898.6,6.3576]
[1742148535905,1.26715852,1898.7,1898.6,6.3576]
[1742148537008,0.42449852,1898.7,1898.6,6.3576]
[1742148537509,0.00790035,1898.8,1898.7,0.84266]
[1742148537702,0.00790035,1898.8,1898.7,2.29736]
[1742148538303,0.43312545,1898.8,1898.7,4.79736]
[1742148538609,21.15047165,1899.2,1898.7,8.00516]
[1742148538908,0.84248,1899.1,1899.0,0.8425]
[1742148539602,21.15047165,1899.2,1899.1,0.84248]
[1742148539915,21.158372,1899.2,1899.1,0.84248]
[1742148540406,20.315912,1899.2,1899.1,0.84248]
[1742148540607,0.00790035,1899.2,1899.1,6.55028]
[1742148540903,3.2078,1899.7,1899.5,0.84228]
[1742148541108,4.05005,1899.7,1899.6,1.4176]
[1742148541310,0.84225,1899.7,1899.6,2.25986]
[1742148541710,4.04995,1899.9,1899.6,3.9176]
[1742148541911,0.85007035,1899.8,1899.7,1.3612]
[1742148542206,0.85007035,1899.8,1899.7,2.20342]
[1742148542603,0.00790035,1899.8,1899.7,6.27542]
[1742148542806,0.85007035,1899.8,1899.7,5.4332]
[1742148543011,0.85007035,1899.8,1899.7,6.27542]
[1742148543612,0.00790035,1899.8,1899.7,6.27542]
[1742148544011,0.85007035,1899.8,1899.7,5.4332]
[1742148544316,0.85007035,1899.8,1899.7,6.27542]
[1742148544909,0.00790035,1899.8,1899.7,6.27542]
[1742148545612,0.84223,1899.7,1899.6,0.84223]
[1742148545917,0.84222,1899.7,1899.6,1.4614]
[1742148546306,0.84244,1899.2,1899.1,0.6863]
[1742148546511,8.78184,1899.7,1898.8,29.198]
[1742148546512,0.84248,1899.1,1899.0,1.4614]
[1742148546705,0.84248,1899.1,1899.0,2.30393]
[1742148546909,0.84248,1899.1,1899.0,1.4614]
[1742148549718,0.84248,1899.1,1899.0,2.30393]
[1742148550616,2.29777,1899.2,1899.0,1.4614]
[1742148550816,4.05021,1899.3,1899.2,0.84244]
[1742148551012,3.2078,1899.3,1899.2,4.88544]
[1742148551520,3.63027111,1899.3,1899.2,4.88544]
[1742148551819,3.63027111,1899.3,1899.2,8.09324]
[1742148551820,0.42247111,1899.3,1899.2,8.09324]
[1742148552022,0.42247111,1899.3,1899.2,10.59324]
[1742148552212,0.42247111,1899.3,1899.2,12.69414]
[1742148552709,0.00790035,1899.8,1899.3,2.10597]
[1742148552913,0.84225,1899.7,1899.6,0.84226]
[1742148553114,0.84225,1899.7,1899.6,4.87826]
[1742148554914,0.84225,1899.7,1899.6,4.036]
[1742148555520,4.05791035,1899.8,1899.7,0.84222]
[1742148555723,4.05791035,1899.8,1899.7,1.4538]
[1742148556624,4.05791035,1899.8,1899.7,2.29602]
[1742148556923,3.21570035,1899.8,1899.7,2.29602]
[1742148557825,4.05787035,1899.8,1899.7,1.4538]
[1742148558123,5.48437035,1899.8,1899.7,1.4538]
[1742148559118,4.64220035,1899.8,1899.4,0.6872]
[1742148559413,4.64220035,1899.8,1899.1,2.10613]
[1742148559414,0.84243,1899.3,1899.2,0.84244]
[1742148559721,0.84243,1899.3,1899.2,1.4001]
[1742148560222,2.29899,1899.3,1899.2,2.24254]
[1742148561427,1.4566,1899.3,1899.2,2.24254]
[1742148562119,1.3955,1899.5,1899.3,0.84238]
[1742148562324,0.84238,1899.4,1899.3,0.84238]
[1742148562524,2.8521,1899.5,1899.4,0.84235]
[1742148562726,2.29894,1899.5,1899.4,0.84235]
[1742148563028,3.94400035,1899.8,1899.5,0.84231]
[1742148563234,1.3613,1899.7,1899.6,0.84226]
[1742148563525,2.20354,1899.7,1899.6,0.84226]
[1742148563726,2.20354,1899.7,1899.5,0.84228]
[1742148563727,0.84227,1899.6,1899.5,0.84228]
[1742148564120,1.3613,1899.7,1899.6,0.84226]
[1742148564429,3.94400035,1899.8,1899.7,0.84222]
[1742148564626,6.14747035,1899.8,1899.7,0.84222]
[1742148564928,2.09750035,1899.8,1899.7,0.84222]
[1742148565329,1.36920035,1899.8,1899.7,4.81622]
[1742148565527,0.00790035,1899.8,1899.7,4.81622]
[1742148566127,0.00790035,1899.8,1899.7,7.31622]
[1742148568126,0.00790035,1899.8,1899.7,13.31622]
[1742148568318,4.6658,1900.4,1900.3,0.84195]
[1742148569218,1.458,1900.4,1900.3,0.84195]
[1742148570926,0.00790035,1900.5,1900.4,0.84191]
[1742148571231,0.00790035,1900.5,1900.4,4.79191]
[1742148573418,0.00790035,1900.5,1900.4,6.26001]
[1742148575426,0.00790035,1900.5,1900.4,8.76001]
[1742148575729,0.7349,1901.0,1900.9,0.84168]
[1742148575918,2.1232,1901.0,1900.9,0.84168]
[1742148576319,2.1232,1901.0,1900.9,5.37318]
[1742148576522,0.702,1901.1,1901.0,0.84164]
[1742148576721,1.3883,1901.2,1901.1,0.8416]
[1742148576924,9.28112474,1901.2,1900.2,0.00790035]
[1742148577127,3.2078,1900.3,1899.8,1.3237]
[1742148577329,3.2078,1900.1,1899.6,3.2078]
[1742148577632,0.6766,1900.2,1899.9,3.2078]
[1742148577933,2.0649,1900.2,1900.0,5.2867]
[1742148579036,2.9069,1900.2,1900.0,5.2867]
[1742148579535,2.0649,1900.2,1900.0,5.2867]
[1742148579939,2.90691,1900.2,1900.0,5.2867]
[1742148580326,2.0649,1900.2,1899.9,3.21570035]
[1742148580533,0.84208,1900.0,1899.9,0.00790035]
[1742148581045,2.17218,1900.0,1899.9,0.00790035]
[1742148581334,0.84227,1899.6,1899.4,3.2078]
[1742148581543,0.84227,1899.6,1899.5,5.4118]
[1742148582341,5.31335,1899.7,1899.2,0.75981065]
[1742148582542,5.31335,1899.7,1899.3,5.4068]
[1742148582543,0.84238,1899.4,1899.3,5.4068]
[1742148582729,0.84238,1899.4,1899.3,5.41470035]
[1742148583132,1.3301,1899.6,1899.4,0.84234]
[1742148583336,0.84226,1899.6,1899.5,1.4598]
[1742148583835,0.84235,1899.4,1899.3,3.95490035]
[1742148584036,0.84235,1899.4,1899.3,5.41470035]
[1742148584739,0.84235,1899.4,1899.3,0.00790035]
[1742148585337,4.05015,1899.4,1899.3,0.00790035]
[1742148585540,5.50365,1899.4,1899.3,0.00790035]
[1742148586137,2.29585,1899.4,1899.3,0.00790035]
[1742148587748,5.50365,1899.4,1899.3,0.00790035]
[1742148589446,2.29585,1899.4,1899.3,0.00790035]
[1742148590246,5.50365,1899.4,1899.3,0.00790035]
[1742148590849,3.9392,1899.6,1899.5,0.84231]
[1742148591144,4.21004,1900.2,1899.5,3.917]
[1742148591145,3.2078,1900.1,1899.5,3.917]
[1742148591441,0.84219,1899.8,1899.6,1.4159]
[1742148591646,0.84214,1899.9,1899.7,0.8422]
[1742148591955,0.84214,1899.9,1899.8,5.3389]
[1742148592939,2.27222,1900.0,1899.8,6.18107]
[1742148593141,2.27222,1900.0,1899.9,1.4159]
[1742148593339,1.4301,1900.0,1899.9,2.25803]
[1742148594559,2.27218,1900.0,1899.9,1.4159]
[1742148595038,2.27218,1900.0,1899.9,2.25803]
[1742148595435,1.4301,1900.0,1899.9,2.25803]
[1742148597652,0.7213,1900.1,1900.0,0.84208]
[1742148597855,0.7213,1900.1,1900.0,2.24458]
[1742148598542,3.21570035,1900.3,1900.2,0.84199]
[1742148598747,3.21570035,1900.3,1900.2,4.73199]
[1742148599250,4.58720035,1900.3,1900.2,4.73199]
[1742148600941,0.84204,1900.1,1900.0,6.12757]
[1742148601153,0.84204,1900.1,1900.0,3.883]
[1742148601542,4.04984,1900.1,1900.0,3.883]
[1742148601755,6.10434,1900.1,1900.0,3.883]
[1742148602152,2.0545,1900.1,1900.0,3.883]
[1742148602351,2.89654,1900.1,1900.0,3.883]
[1742148602551,2.89654,1900.1,1900.0,4.72508]
[1742148602751,2.89654,1900.1,1900.0,6.14078]
[1742148603059,2.0545,1900.1,1900.0,6.14078]
[1742148604460,3.21570035,1900.3,1900.0,5.2987]
[1742148604758,4.05766035,1900.3,1900.0,5.2987]
[1742148605060,0.84203,1900.2,1900.0,6.14075]
[1742148605257,0.84204,1900.1,1900.0,3.883]
[1742148605450,0.84212,1900.0,1899.9,3.87]
[1742148605653,2.20302,1900.0,1899.8,6.09756]
[1742148606052,2.20302,1900.0,1899.8,5.2554]
[1742148606254,2.20302,1900.0,1899.8,6.09754]
[1742148606454,2.20302,1900.0,1899.5,3.2078]
[1742148606455,1.3609,1900.0,1899.5,3.2078]
[1742148606659,0.84228,1899.6,1899.4,2.22772]
[1742148606953,1.3609,1899.5,1899.4,2.22772]
[1742148607864,2.20321,1899.5,1899.4,1.3854]
[1742148608449,2.20321,1899.5,1899.4,2.22775]
[1742148608955,1.3609,1899.5,1899.4,1.3854]
[1742148609353,1.3609,1899.5,1899.4,2.22775]
[1742148610361,3.2078,1899.7,1899.6,0.84226]
[1742148610561,3.2078,1899.7,1899.6,4.69426]
[1742148611464,3.2078,1899.7,1899.6,6.06386]
[1742148613057,2.19075,1900.1,1899.6,6.06386]
[1742148613257,1.3487,1900.1,1900.0,0.84208]
[1742148613458,2.7127,1900.1,1900.0,0.84208]
[1742148613653,0.00790035,1900.3,1900.2,0.84199]
[1742148613859,1.37190035,1900.3,1900.2,0.84199]
[1742148614058,1.37190035,1900.3,1900.2,4.68199]
[1742148614259,0.00790035,1900.3,1900.2,4.68199]
[1742148614865,0.00790035,1900.3,1900.2,6.02579]
[1742148616265,1.43940035,1900.3,1900.2,6.02579]
[1742148616467,2.28135035,1900.3,1900.2,3.84]
[1742148616668,0.84202,1900.2,1900.0,6.01487]
[1742148616969,1.4315,1900.1,1900.0,6.01487]
[1742148617672,0.84986035,1900.3,1900.1,0.84201]
[1742148617863,0.00790035,1900.3,1900.2,0.84199]
[1742148618371,0.00790035,1900.3,1900.2,2.21979]
[1742148619267,0.00790035,1900.3,1900.2,5.42759]
[1742148619569,0.00790035,1900.3,1900.2,2.21979]
[1742148621968,0.00790035,1900.3,1900.0,3.2078]
[1742148622163,0.84202,1900.2,1900.0,4.65908]
[1742148622467,1.3674,1900.1,1900.0,4.65908]
[1742148622661,1.3674,1900.1,1900.0,6.05128]
[1742148623263,2.20944,1900.1,1900.0,5.2122]
[1742148623463,1.56117035,1900.3,1900.1,0.84203]
[1742148623668,1.3705,1900.2,1900.1,0.84203]
[1742148625072,0.00790035,1900.3,1900.2,0.84199]
[1742148625665,1.37840035,1900.3,1900.2,0.84199]
[1742148629069,0.00790035,1900.3,1900.2,0.84199]
[1742148633076,0.00790035,1900.3,1900.2,2.25649]
[1742148633377,1.3291,1900.6,1900.5,0.84186]
[1742148633674,1.9987,1900.7,1900.6,0.84182]
[1742148634068,1.9987,1900.7,1900.6,2.25632]
[1742148635075,0.84182,1900.6,1900.5,3.78590035]
[1742148635278,2.88222,1900.6,1900.5,3.78590035]
[1742148636373,6.09002,1900.6,1900.5,3.78590035]
[1742148636677,6.09002,1900.6,1900.5,0.00790035]
[1742148636868,5.2482,1900.6,1900.5,0.84976035]
[1742148637069,6.09002,1900.6,1900.5,0.00790035]
[1742148637774,6.09002,1900.6,1900.5,0.84976035]
[1742148637976,6.09002,1900.6,1900.5,0.00790035]
[1742148638767,6.09002,1900.6,1900.5,0.84976035]
[1742148639281,5.2482,1900.6,1900.5,0.84976035]
[1742148639776,2.0404,1900.6,1900.5,0.84976035]
[1742148644871,0.6696,1900.7,1900.6,0.84182]
[1742148645073,0.6696,1900.7,1900.6,5.92782]
[1742148645475,0.00790035,1900.8,1900.7,0.84177]
[1742148645678,0.00790035,1900.8,1900.7,2.18777]
[1742148648783,22.33881282,1901.7,1901.0,8.736]
[1742148648980,22.33881282,1901.7,1901.6,0.84137]
[1742148649181,22.33881282,1901.7,1901.6,4.59737]
[1742148651688,0.00521094,1901.8,1901.6,4.59737]
[1742148651689,0.00521094,1901.8,1901.7,0.84133]
[1742148651888,0.00521094,1901.8,1901.7,2.19773]
[1742148654479,1.3542,1902.0,1901.9,0.84124]
[1742148654783,1.3542,1902.0,1901.9,4.58424]
[1742148655482,0.6863,1902.0,1901.9,4.58424]
[1742148657090,0.6863,1902.0,1901.9,7.79204]
[1742148657385,0.7233,1902.3,1902.2,0.84111]
[1742148657587,0.7233,1902.3,1902.2,4.57211]
[1742148657988,3.2078,1902.5,1902.4,0.84102]
[1742148658387,0.7197,1902.6,1902.5,0.84098]
[1742148658891,0.7197,1902.6,1902.2,5.1934]
[1742148659190,0.7197,1902.6,1902.5,0.84098]
[1742148659884,3.9436138,1902.9,1902.5,3.726]
[1742148660084,1.43,1902.7,1902.6,0.84093]
[1742148660283,2.27089,1902.7,1902.5,3.73390035]
[1742148660485,2.27089,1902.7,1902.5,4.57485035]
[1742148660687,0.84093,1902.6,1902.5,0.00790035]
[1742148660884,0.84102,1902.4,1902.3,4.56905]
[1742148661083,6.74005,1902.7,1902.3,4.56905]
[1742148661084,4.6378,1902.7,1902.3,3.728]
[1742148661291,0.84093,1902.6,1902.5,0.84098]
[1742148661692,1.43,1902.7,1902.6,0.84093]
[1742148661996,2.27089,1902.7,1902.6,0.84093]
[1742148662191,1.43,1902.7,1902.6,0.84093]
[1742148662391,2.27089,1902.7,1902.6,0.84093]
[1742148662699,1.43,1902.7,1902.6,0.84093]
[1742148663394,1.43,1902.7,1902.5,0.00790035]
[1742148663395,3.63232,1902.7,1902.5,0.84884035]
[1742148663591,0.84093,1902.6,1902.5,3.73090035]
[1742148663791,2.20233,1902.6,1902.5,3.73090035]
[1742148666303,2.20233,1902.6,1902.5,0.00790035]
[1742148669398,0.84107,1902.3,1902.2,3.2078]
[1742148669602,5.31038,1902.4,1902.1,3.705]
[1742148669802,5.31038,1902.4,1902.1,3.706]
[1742148669803,2.90571,1902.2,1902.1,3.706]
[1742148670203,2.90571,1902.2,1902.1,4.54715]
[1742148670506,2.90571,1902.2,1902.1,3.706]
[1742148670708,0.84115,1902.1,1902.0,3.71090035]
[1742148671001,2.23415,1902.1,1902.0,0.00790035]
[1742148672199,1.393,1902.1,1902.0,0.84910035]
[1742148672406,1.393,1902.1,1902.0,2.31880035]
[1742148673104,3.8794,1902.2,1902.1,0.84115]
[1742148674803,0.6716,1902.2,1902.1,0.84115]
[1742148676511,3.00605,1902.4,1902.3,0.84107]
[1742148677211,3.2078,1902.6,1902.3,1.4464]
[1742148677413,5.50186,1902.6,1902.4,0.84099]
[1742148677616,5.50186,1902.6,1902.5,1.4464]
[1742148678803,0.84105,1902.4,1902.3,1.4377]
[1742148679112,0.84105,1902.4,1902.3,5.1407]
[1742148679312,0.84105,1902.4,1902.3,5.98175]
[1742148680309,4.6609,1902.6,1902.4,0.84101]
[1742148680310,0.84101,1902.5,1902.4,0.84101]
[1742148680511,2.17421,1902.5,1902.4,1.4377]
[1742148681214,2.17421,1902.5,1902.4,2.27872]
[1742148681418,0.84107,1902.3,1902.2,0.8411]
[1742148681606,0.84107,1902.3,1902.2,4.5341]
[1742148682715,0.84107,1902.3,1902.2,3.693]
[1742148683318,0.84111,1902.2,1902.1,5.99343]
[1742148683519,2.25531,1902.2,1902.1,5.99343]
[1742148683818,2.25531,1902.2,1902.1,5.1523]
[1742148684020,1.50559,1902.3,1902.2,0.84111]
[1742148684214,1.50559,1902.3,1902.2,1.4603]
[1742148685717,1.50559,1902.3,1902.2,2.30141]
[1742148685912,1.50559,1902.3,1902.2,1.4603]
[1742148686521,1.26434386,1902.5,1902.2,4.6681]
[1742148686813,0.84106,1902.4,1902.3,0.84106]
[1742148687622,2.2075,1902.5,1902.4,0.84102]
[1742148687922,0.84104,1902.4,1902.3,0.84103]
[1742148688822,0.84107,1902.3,1902.2,2.30138]
[1742148689515,0.84107,1902.3,1902.2,5.1343]
[1742148689916,0.84107,1902.3,1902.2,1.4603]
[1742148690122,2.23017,1902.3,1902.2,1.4603]
[1742148696117,1.3891,1902.3,1902.2,1.4603]
[1742148696323,0.84107,1902.3,1902.2,1.4603]
[1742148696525,0.84107,1902.3,1902.2,2.3014]
[1742148697222,0.7358138,1902.4,1902.3,0.84107]
[1742148697420,0.7358138,1902.4,1902.3,4.49707]
[1742148697620,0.7358138,1902.4,1902.3,5.22877]
[1742148699221,1.3644,1902.7,1902.6,0.84093]
[1742148699421,2.11424835,1902.8,1902.6,0.84091]
[1742148699627,2.11424835,1902.8,1902.7,4.9827]
[1742148700229,0.00790035,1902.8,1902.7,4.9827]
[1742148700532,0.84874035,1902.8,1902.7,4.9827]
[1742148700922,0.00790035,1902.8,1902.7,5.82359]
[1742148701927,0.00790035,1902.8,1902.7,9.03139]
[1742148703323,3.9386,1903.3,1902.7,8.1905]
[1742148703526,5.3689,1903.3,1902.8,0.7216]
[1742148703729,0.84074,1903.1,1902.9,2.18619]
[1742148704128,0.8407,1903.2,1903.0,0.84075]
[1742148704329,2.271,1903.2,1903.1,1.3454]
[1742148705729,0.84076,1903.0,1902.9,0.00790035]
[1742148706440,2.17956,1903.0,1902.9,0.00790035]
[1742148708633,1.3388,1903.0,1902.9,0.8408]
[1742148709036,0.8408,1902.9,1902.8,0.7173]
[1742148709244,0.8408,1902.9,1902.7,2.08095401]
[1742148709434,1.3657,1902.8,1902.7,2.08095401]
[1742148709634,2.20654,1902.8,1902.7,2.08095401]
[1742148711631,2.20649,1903.0,1902.9,0.8408]
[1742148711835,1.3657,1903.0,1902.9,0.8408]
[1742148712038,3.2078,1903.1,1903.0,0.84076]
[1742148712241,2.258,1903.2,1903.0,0.84076]
[1742148712534,5.4658,1903.2,1903.1,1.4623]
[1742148714740,5.4658,1903.2,1903.1,2.30301]
[1742148715242,5.4658,1903.2,1903.1,1.4623]
[1742148716637,6.7268,1903.2,1902.7,0.84087]
[1742148716834,0.8408,1902.9,1902.8,5.0252]
[1742148717232,5.3609138,1903.2,1902.8,5.0252]
[1742148717435,0.84071,1903.1,1903.0,0.84072]
[1742148717645,0.84071,1903.1,1903.0,1.4042]
[1742148717938,1.4349,1903.1,1903.0,2.24496]
[1742148718139,2.9097138,1903.2,1903.1,0.84071]
[1742148718439,1.57934035,1903.3,1903.1,4.46468]
[1742148718641,0.84854035,1903.3,1903.2,1.3683]
[1742148719033,0.00790035,1903.3,1903.2,2.20897]
[1742148721341,4.0484,1903.4,1903.3,0.84062]
[1742148721342,3.2078,1903.4,1903.3,0.84062]
[1742148721538,1.3332,1903.6,1903.2,1.3683]
[1742148721744,4.541,1903.6,1903.2,1.3683]
[1742148721945,0.84057,1903.5,1903.3,0.84059]
[1742148722140,2.20117,1903.5,1903.4,4.9469]
[1742148723147,2.20117,1903.5,1903.4,5.78748]
[1742148723645,1.3606,1903.5,1903.4,5.78748]
[1742148724347,3.21570035,1903.6,1903.5,0.84054]
[1742148724547,3.21570035,1903.6,1903.5,2.25764]
[1742148724747,4.05619035,1903.6,1903.5,2.25764]
[1742148725047,4.60970035,1903.6,1903.5,2.25764]
[1742148725549,1.40190035,1903.6,1903.5,2.25764]
[1742148726155,2.24239035,1903.6,1903.5,2.25764]
[1742148726345,2.24239035,1903.6,1903.5,1.4171]
[1742148726544,0.84054,1903.5,1903.4,3.608]
[1742148726849,1.394,1903.5,1903.4,5.86568]
[1742148728044,1.394,1903.5,1903.4,5.0251]
[1742148728245,2.23454,1903.5,1903.4,5.86568]
[1742148728745,1.394,1903.5,1903.4,5.86568]
[1742148731249,0.00790035,1903.6,1903.5,0.84054]
[1742148731446,0.00790035,1903.6,1903.5,2.21334]
[1742148734652,3.2078,1903.8,1903.7,0.84045]
[1742148734856,0.686,1904.1,1903.9,0.84034]
[1742148734857,6.17041,1904.1,1903.9,0.84034]
[1742148735055,6.17041,1904.1,1904.0,1.4669]
[1742148735352,4.04807,1904.1,1904.0,1.4669]
[1742148735749,3.2078,1904.1,1904.0,5.0539]
[1742148735949,0.84024,1904.2,1904.0,5.89418]
[1742148736258,0.84027,1904.1,1904.0,5.0539]
[1742148736463,0.84031,1904.0,1903.9,0.00787918]
[1742148736646,2.26901,1904.0,1903.9,0.00787918]
[1742148738053,0.84031,1904.0,1903.9,0.84823918]
[1742148738256,1.4287,1904.1,1903.9,0.00787918]
[1742148738453,1.4287,1904.1,1904.0,0.84031]
[1742148738454,2.26899,1904.1,1904.0,0.84031]
[1742148738859,1.4287,1904.1,1904.0,0.84031]
[1742148739159,0.84027,1904.1,1904.0,0.84029]
[1742148739359,2.29427,1904.1,1903.9,2.23989918]
[1742148739658,0.84031,1904.0,1903.9,0.00787918]
[1742148739860,2.29431,1904.0,1903.9,0.00787918]
[1742148740158,2.29431,1904.0,1903.9,0.84823918]
[1742148740460,2.29431,1904.0,1903.9,0.00787918]
[1742148740956,2.29431,1904.0,1903.9,1.38417918]
[1742148741259,2.29431,1904.0,1903.9,0.00787918]
[1742148741760,2.95671,1904.0,1903.9,0.00787918]
[1742148742146,5.45671,1904.0,1903.9,0.00787918]
[1742148742459,0.84049,1903.6,1903.5,5.88654]
[1742148743154,2.0605,1903.8,1903.5,5.88654]
[1742148743360,0.84048,1903.7,1903.5,5.88654]
[1742148743662,2.20199,1903.6,1903.5,5.89441918]
[1742148743859,0.699,1903.8,1903.5,5.89441918]
[1742148743860,0.699,1903.8,1903.5,5.05387918]
[1742148744059,1.53944,1903.8,1903.6,0.84048]
[1742148744366,2.20195,1903.7,1903.5,5.89438918]
[1742148744556,0.84049,1903.6,1903.5,0.00787918]
[1742148744762,2.93189,1903.6,1903.5,1e-08]
[1742148745063,6.1677038,1903.6,1903.5,1e-08]
[1742148745258,4.7810834,1903.6,1903.5,1e-08]
[1742148745456,7.42964177,1903.6,1903.5,1e-08]
[1742148745657,8.54302137,1903.6,1903.5,1e-08]
[1742148748569,0.84071,1903.1,1903.0,1.3593]
[1742148750065,2.28031,1903.1,1903.0,1.3593]
[1742148752069,2.28031,1903.1,1902.9,3.58987918]
[1742148752070,0.84076,1903.0,1902.9,1.37437918]
[1742148752268,2.25566,1903.0,1902.9,1.37437918]
[1742148752460,2.25566,1903.0,1902.9,0.00787918]
[1742148756873,2.25566,1903.0,1902.9,1.33317918]
[1742148757062,0.84076,1903.0,1902.9,1.33317918]
[1742148757264,1.58443298,1903.1,1902.9,2.17397918]
[1742148759071,0.74369298,1903.1,1903.0,0.84076]
[1742148759272,0.74369298,1903.1,1903.0,2.19866]
[1742148759574,1.58440298,1903.1,1903.0,4.9409]
[1742148760672,2.94170298,1903.1,1903.0,4.9409]
[1742148761569,0.7358138,1903.9,1903.1,2.10179]
[1742148761875,1.3573,1903.8,1903.3,3.2078]
[1742148762173,2.725,1903.8,1903.5,3.2078]
[1742148762471,2.86261,1903.8,1903.6,1.4384]
[1742148762676,2.03000864,1903.8,1903.7,3.603]
[1742148763064,0.00780864,1903.8,1903.7,7.65125]
[1742148763264,0.00780864,1903.8,1903.7,9.08965]
[1742148766473,0.7224,1904.1,1904.0,0.84031]
[1742148766771,0.7224,1904.1,1904.0,4.04811]
[1742148767371,1.56267,1904.1,1904.0,6.7988]
[1742148767569,1.56267,1904.1,1903.7,1.4384]
[1742148767570,0.84038,1903.9,1903.8,3.593]
[1742148767760,0.8404,1903.8,1903.7,4.6462]
[1742148768063,0.8404,1903.8,1903.7,2.28672918]
[1742148768264,0.84035,1904.0,1903.8,0.84038]
[1742148768465,0.8404,1903.8,1903.7,0.00787918]
[1742148769171,0.84054,1903.5,1903.4,3.611]
[1742148769374,0.84062,1903.3,1903.2,6.57786]
[1742148769763,0.84062,1903.3,1903.2,5.7372]
[1742148769967,0.84062,1903.3,1903.2,8.2578]
[1742148770163,0.6781,1903.3,1902.9,3.9249]
[1742148770373,0.6781,1903.3,1903.1,0.00787918]
[1742148770374,2.20877,1903.2,1903.1,0.00787918]
[1742148772175,2.9445838,1903.2,1903.1,0.00787918]
[1742148772370,3.6785838,1903.2,1903.1,0.00787918]
[1742148773970,0.84089,1902.7,1902.6,3.2078]
[1742148774174,0.84092,1902.7,1902.5,4.3231]
[1742148774371,0.84092,1902.7,1902.5,5.16408]
[1742148775374,0.84092,1902.7,1902.6,1.3757]
[1742148776577,0.84098,1902.5,1902.4,3.21567918]
[1742148776877,0.84098,1902.5,1902.4,0.00787918]
[1742148777375,1.51228,1902.5,1902.4,0.00787918]
[1742148778278,2.2480938,1902.5,1902.4,0.00787918]
[1742148782481,1.51228,1902.5,1902.4,0.00787918]
[1742148784077,0.84098,1902.5,1902.4,0.00787918]
[1742148784284,0.84098,1902.5,1902.4,1.39117918]
[1742148786784,0.84098,1902.5,1902.4,2.23219918]
[1742148786976,0.6757,1902.7,1902.4,2.23219918]
[1742148787276,0.84093,1902.6,1902.4,2.23219918]
[1742148787478,0.84098,1902.5,1902.4,1.39117918]
[1742148788276,0.84098,1902.5,1902.4,0.00787918]
[1742148788487,0.84111,1902.2,1902.1,1.3957]
[1742148789485,2.28881,1902.2,1902.1,1.3957]
[1742148790279,0.00787918,1902.3,1902.2,0.84111]
[1742148790586,0.00787918,1902.3,1902.2,1.3957]
[1742148790772,0.00787918,1902.3,1902.2,2.23681]
[1742148790978,0.00787918,1902.3,1902.2,3.65351]
[1742148791785,0.84894918,1902.3,1902.2,3.65351]
[1742148791989,0.84894918,1902.3,1902.2,2.8124]
[1742148793278,0.84894918,1902.3,1902.2,2.1286]
[1742148794487,0.00787918,1902.3,1902.2,2.1286]
[1742148794687,0.00787918,1902.3,1902.2,2.96971]
[1742148796290,0.84894918,1902.3,1902.2,2.96971]
[1742148796489,0.00787918,1902.3,1902.2,2.96971]
[1742148797287,0.84093,1902.6,1902.2,2.1286]
[1742148797490,0.84093,1902.6,1902.5,3.2078]
[1742148797691,0.84093,1902.6,1902.5,6.8038]
[1742148797882,0.84093,1902.6,1902.5,8.2328]
[1742148799781,0.84093,1902.6,1902.5,9.07378]
[1742148800291,0.84878918,1902.7,1902.5,8.2328]
[1742148800588,0.00787918,1902.7,1902.6,1.52333]
[1742148800987,0.84093,1902.6,1902.5,8.2328]
[1742148801290,0.84093,1902.6,1902.5,1.429]
[1742148801884,2.26623,1902.6,1902.5,1.429]
[1742148802089,2.26623,1902.6,1902.5,2.26998]
[1742148802483,2.26623,1902.6,1902.5,1.429]
[1742148803888,2.26623,1902.6,1902.5,2.26998]
[1742148804191,0.84093,1902.6,1902.5,1.429]
[1742148804489,0.84093,1902.6,1902.5,2.26998]
[1742148804882,0.84093,1902.6,1902.5,1.429]
[1742148805084,2.22663,1902.6,1902.5,1.429]
[1742148805387,0.84107,1902.3,1902.2,3.2078]
[1742148805589,0.84107,1902.3,1902.2,4.6668]
[1742148806985,2.22675,1902.4,1902.2,4.6668]
[1742148807185,2.22675,1902.4,1902.2,5.50787]
[1742148808393,1.5767838,1902.6,1902.4,0.84098]
[1742148808587,1.5767838,1902.6,1902.5,1.3827]
[1742148808890,0.84097,1902.6,1902.5,1.3827]
[1742148810088,0.84879918,1902.7,1902.6,0.84093]